bitfinex/quotes_SOLUSD_20250305
["timestamp","ask_amount","ask_price","bid_price","bid_amount"]
[1741134037674,52.62281595,144.33,144.26,52.62281595]
[1741134037870,81.8,144.38,144.28,52.62281595]
[1741134037871,52.62281595,144.35,144.28,52.62281595]
[1741134038175,52.62281595,144.36,144.29,52.62281595]
[1741134038974,52.62281595,144.35,144.29,6.93]
[1741134039352,52.62281595,144.33,144.28,34.9]
[1741134039673,52.62281595,144.32,144.26,81.6]
[1741134040053,52.62281595,144.32,144.26,88.5318]
[1741134040857,52.62281595,144.31,144.26,81.6]
[1741134041076,52.62281595,144.3,144.26,81.6]
[1741134041571,52.62281595,144.31,144.26,81.6]
[1741134042173,52.62281595,144.33,144.26,141.15461595]
[1741134042376,81.8,144.35,144.26,141.15461595]
[1741134042377,134.42281595,144.35,144.28,52.62281595]
[1741134042572,52.62281595,144.35,144.28,169.12281595]
[1741134042879,52.62281595,144.34,144.28,116.5]
[1741134043249,52.62281595,144.34,144.28,123.4307]
[1741134043575,52.62281595,144.36,144.29,52.62281595]
[1741134043769,52.62281595,144.36,144.29,169.12281595]
[1741134044157,52.62281595,144.39,144.32,52.62281595]
[1741134044351,52.62281595,144.4,144.34,52.62281595]
[1741134044873,52.62281595,144.4,144.33,52.62281595]
[1741134045280,52.62281595,144.4,144.34,6.928]
[1741134045480,52.62281595,144.4,144.34,318.928]
[1741134045976,52.62281595,144.39,144.34,312.0]
[1741134046473,52.62281595,144.41,144.34,364.62281595]
[1741134046656,52.62281595,144.41,144.34,446.22281595]
[1741134046856,52.62281595,144.42,144.35,52.62281595]
[1741134047176,52.62281595,144.41,144.34,446.22281595]
[1741134047375,52.62281595,144.38,144.34,81.6]
[1741134047685,0.033,144.37,144.32,88.5289]
[1741134049271,52.62281595,144.35,144.32,81.6]
[1741134049474,52.62281595,144.35,144.3,81.6]
[1741134049976,52.62281595,144.36,144.3,88.5298]
[1741134050478,52.62281595,144.35,144.3,88.5297]
[1741134050958,52.62281595,144.35,144.3,81.6]
[1741134051159,52.62281595,144.36,144.3,88.5298]
[1741134051356,52.62281595,144.35,144.3,88.5298]
[1741134051570,52.65581595,144.37,144.31,52.62281595]
[1741134052376,52.65581595,144.37,144.3,158.47761595]
[1741134052982,0.033,144.37,144.32,52.62281595]
[1741134053183,0.033,144.37,144.33,52.62281595]
[1741134053390,0.033,144.37,144.34,6.928]
[1741134054184,0.033,144.37,144.31,59.55231595]
[1741134054371,52.65581595,144.37,144.31,88.5295]
[1741134054570,52.62281595,144.36,144.31,88.5295]
[1741134054879,52.62281595,144.36,144.31,81.6]
[1741134055589,59.54991595,144.36,144.31,88.5295]
[1741134056077,52.62281595,144.36,144.31,88.5295]
[1741134056790,59.54991595,144.36,144.31,88.5295]
[1741134056988,52.62281595,144.36,144.31,88.5295]
[1741134057168,52.62281595,144.35,144.31,81.6]
[1741134057891,0.033,144.37,144.31,141.15221595]
[1741134058093,0.033,144.37,144.32,52.62281595]
[1741134058675,0.033,144.37,144.31,105.8532]
[1741134058883,0.033,144.37,144.34,52.62281595]
[1741134059469,0.033,144.37,144.33,52.62281595]
[1741134060093,0.033,144.37,144.34,6.928]
[1741134060280,0.033,144.37,144.34,318.928]
[1741134060478,52.65581595,144.37,144.31,0.03]
[1741134060665,52.62281595,144.36,144.31,0.03]
[1741134060984,0.033,144.37,144.31,6.9594]
[1741134061178,52.62281595,144.36,144.31,6.9594]
[1741134061379,52.62281595,144.35,144.31,0.03]
[1741134061577,52.62281595,144.36,144.31,6.9592]
[1741134061780,0.033,144.37,144.32,52.62281595]
[1741134061979,0.033,144.37,144.33,52.62281595]
[1741134062186,0.033,144.37,144.34,6.928]
[1741134062569,0.033,144.37,144.31,169.15281595]
[1741134062771,52.65581595,144.37,144.31,116.53]
[1741134063196,52.62281595,144.36,144.31,0.03]
[1741134063489,52.62281595,144.32,144.31,0.03]
[1741134064196,59.83613909,144.32,144.31,0.0001]
[1741134065074,20.28432314,144.29,144.28,0.03]
[1741134065276,72.90713909,144.29,144.28,0.03]
[1741134066178,79.83753909,144.29,144.28,0.03]
[1741134066399,132.46035504,144.29,144.28,0.03]
[1741134066612,79.83753909,144.29,144.28,0.03]
[1741134066789,72.62281595,144.29,144.28,0.03]
[1741134067385,79.55321595,144.29,144.28,0.03]
[1741134067591,52.62281595,144.29,144.28,0.03]
[1741134067921,52.62281595,144.3,144.28,0.03]
[1741134068215,52.62281595,144.29,144.28,0.03]
[1741134068418,52.76497752,144.29,144.28,0.03]
[1741134068608,20.28432314,144.26,144.25,0.03]
[1741134068906,72.62281595,144.26,144.25,0.03]
[1741134069481,72.90713909,144.26,144.25,0.03]
[1741134070074,79.04713909,144.26,144.25,0.03]
[1741134070288,85.97903909,144.26,144.25,0.03]
[1741134072308,0.28432314,144.21,144.16,0.03]
[1741134072485,52.62281595,144.17,144.16,0.03]
[1741134072914,134.42281595,144.2,144.16,0.03]
[1741134072915,52.62281595,144.18,144.16,0.03]
[1741134073416,52.62281595,144.17,144.16,0.03]
[1741134074295,52.90713909,144.17,144.16,0.03]
[1741134075098,65.94333909,144.17,144.16,0.03]
[1741134075303,65.94333909,144.17,144.15,0.03]
[1741134075304,0.28432314,144.16,144.15,0.03]
[1741134075503,105.52995504,144.16,144.15,0.03]
[1741134075680,105.52995504,144.16,144.11,0.03]
[1741134075681,107.52995504,144.16,144.11,0.03]
[1741134076008,52.90713909,144.12,144.04,6.9424]
[1741134076206,52.90713909,144.12,144.01,52.62281595]
[1741134076207,52.62281595,144.07,144.01,52.62281595]
[1741134076423,52.62281595,144.13,144.06,52.62281595]
[1741134076707,52.62281595,144.14,144.07,58.65261595]
[1741134076903,13.0363,144.17,144.07,58.65261595]
[1741134076904,52.62281595,144.12,144.07,6.0298]
[1741134077404,52.62281595,144.13,144.07,58.65261595]
[1741134077613,52.62281595,144.15,144.09,52.62281595]
[1741134077783,52.90713909,144.16,144.09,52.62281595]
[1741134077986,52.62281595,144.16,144.1,52.62281595]
[1741134078189,6.1,144.17,144.12,59.56131595]
[1741134078392,6.1,144.17,144.12,6.9385]
[1741134078591,58.72281595,144.17,144.11,52.62281595]
[1741134078808,52.90713909,144.13,144.05,17.3543]
[1741134079120,52.90713909,144.13,144.07,52.62281595]
[1741134079489,52.62281595,144.15,144.08,52.62281595]
[1741134079686,81.8,144.14,144.09,52.62281595]
[1741134080383,81.8,144.14,144.1,6.9396]
[1741134081191,0.28432314,144.13,144.07,32.45255233]
[1741134081395,32.73687547,144.13,144.06,131.40635233]
[1741134081594,114.25255233,144.14,144.07,39.39355233]
[1741134081797,81.8,144.14,144.08,32.45255233]
[1741134082016,114.25255233,144.14,144.07,39.39355233]
[1741134082409,81.8,144.14,144.08,32.45255233]
[1741134082719,114.25255233,144.14,144.07,39.39355233]
[1741134083101,81.8,144.14,144.08,32.45255233]
[1741134083815,114.25255233,144.14,144.07,56.74615233]
[1741134084016,32.73687547,144.13,144.07,6.941]
[1741134084226,114.25255233,144.12,144.06,6.9714]
[1741134084384,82.08432314,144.11,144.06,0.03]
[1741134084586,81.8,144.11,144.06,32.48255233]
[1741134084987,114.25255233,144.11,144.06,0.03]
[1741134085186,32.45255233,144.1,144.06,0.03]
[1741134085429,81.8,144.11,144.06,32.48255233]
[1741134085587,81.8,144.11,144.07,32.45255233]
[1741134085786,81.8,144.11,144.06,0.03]
[1741134086213,114.25255233,144.11,144.06,0.03]
[1741134086391,0.28432314,144.09,144.06,0.03]
[1741134086588,114.53687547,144.09,144.06,0.03]
[1741134086811,121.47707547,144.09,144.06,0.03]
[1741134086991,114.53687547,144.09,144.06,0.03]
[1741134087202,82.08432314,144.09,144.06,0.03]
[1741134087412,121.47697547,144.09,144.06,0.03]
[1741134087918,81.8,144.08,144.06,0.03]
[1741134088523,81.8,144.11,144.06,32.48255233]
[1741134089115,81.8,144.11,144.07,6.941]
[1741134091591,114.53687547,144.1,144.06,0.03]
[1741134093096,121.47647547,144.1,144.06,0.03]
[1741134093417,0.28432314,144.08,144.06,0.03]
[1741134094330,134.53687547,144.07,144.06,0.03]
[1741134094929,52.73687547,144.07,144.06,0.03]
[1741134095098,59.67787547,144.07,144.06,0.03]
[1741134096315,20.28432314,144.07,144.06,0.03]
[1741134096904,52.73687547,144.07,144.06,0.03]
[1741134097222,59.67787547,144.07,144.06,0.03]
[1741134098321,59.67787547,144.07,144.01,0.03]
[1741134098322,8.47212314,144.06,144.01,0.03]
[1741134098622,32.73687547,144.02,144.01,0.03]
[1741134099222,39.68027547,144.02,144.01,0.03]
[1741134099607,32.45255233,144.03,144.01,0.03]
[1741134099813,0.28432314,144.02,144.01,0.03]
[1741134100125,20.0,144.02,144.01,0.03]
[1741134100421,52.73687547,144.02,144.01,0.03]
[1741134101119,0.28432314,144.02,144.01,0.03]
[1741134101421,39.68027547,144.02,144.01,0.03]
[1741134101922,32.73687547,144.02,144.01,0.03]
[1741134102423,0.28432314,144.02,144.01,0.03]
[1741134103209,32.73687547,144.02,144.01,0.03]
[1741134103406,39.68027547,144.02,144.01,0.03]
[1741134104037,32.73687547,144.02,144.01,0.03]
[1741134104207,0.28432314,144.02,144.01,0.03]
[1741134104410,20.0,144.02,144.01,0.03]
[1741134104836,0.28432314,144.03,144.01,0.03]
[1741134105137,52.73687547,144.03,144.01,0.03]
[1741134105308,32.73687547,144.02,144.01,0.03]
[1741134106110,32.45255233,144.03,144.01,0.03]
[1741134106322,0.28432314,144.03,144.01,0.03]
[1741134107411,32.73687547,144.02,144.01,0.03]
[1741134108712,0.28432314,144.02,144.01,0.03]
[1741134108912,32.45255233,144.04,144.01,0.03]
[1741134109215,0.28432314,144.03,144.01,0.03]
[1741134109537,20.0,144.03,144.01,0.03]
[1741134111105,20.28432314,144.04,144.01,0.03]
[1741134111829,20.0,144.04,144.01,0.03]
[1741134112936,81.8,144.07,144.02,32.45255233]
[1741134113114,81.8,144.07,144.04,32.45255233]
[1741134113445,0.033,144.1,144.05,32.45255233]
[1741134113626,81.833,144.1,144.05,32.45255233]
[1741134114619,81.833,144.1,144.06,6.9415]
[1741134114819,81.833,144.1,144.06,39.39405233]
[1741134115138,0.033,144.1,144.08,32.45255233]
[1741134115339,0.033,144.1,144.07,32.45255233]
[1741134115844,0.033,144.1,144.09,32.45255233]
[1741134116621,0.033,144.1,144.09,45.85855233]
[1741134117242,0.033,144.1,144.09,13.406]
[1741134117536,0.033,144.1,144.09,6.4659]
[1741134118428,0.033,144.1,144.09,45.85855233]
[1741134120222,0.033,144.1,144.07,32.45255233]
[1741134120433,0.033,144.1,144.06,114.05255233]
[1741134120627,0.033,144.1,144.09,32.45255233]
[1741134122054,0.033,144.16,144.09,148.95255233]
[1741134122219,0.033,144.16,144.15,32.45255233]
[1741134122719,0.033,144.16,144.15,39.38975233]
[1741134122920,0.033,144.16,144.15,120.98975233]
[1741134123229,0.033,144.21,144.16,0.28432314]
[1741134123523,0.033,144.21,144.2,64.90510466]
[1741134123747,0.033,144.21,144.2,146.50510466]
[1741134123949,0.033,144.21,144.2,114.05255233]
[1741134124848,0.033,144.21,144.16,6.9364]
[1741134125044,0.033,144.21,144.18,32.45255233]
[1741134125261,52.48555233,144.21,144.15,32.45255233]
[1741134125446,32.45255233,144.18,144.11,6.3361]
[1741134125623,32.45255233,144.18,144.12,32.45255233]
[1741134125829,82.08432314,144.19,144.07,13.3906]
[1741134125830,82.08432314,144.17,144.07,13.3906]
[1741134126049,82.08432314,144.17,144.09,32.45255233]
[1741134126226,32.45255233,144.14,144.07,38.90255233]
[1741134126427,32.45255233,144.12,144.05,32.45255233]
[1741134126648,6.9391,144.11,144.05,32.45255233]
[1741134126830,32.45255233,144.12,144.05,32.45255233]
[1741134127029,0.28432314,144.11,144.05,32.45255233]
[1741134127345,20.0,144.03,144.01,0.03]
[1741134127547,32.45255233,144.06,144.01,0.03]
[1741134127743,32.45255233,144.05,144.01,0.03]
[1741134128654,52.81159843,144.04,144.01,0.03]
[1741134129152,73.09592157,144.02,144.01,0.03]
[1741134131036,60.03932157,144.02,144.01,0.03]
[1741134131244,53.09592157,144.02,144.01,0.03]
[1741134131465,1.6145,144.06,144.01,0.03]
[1741134131639,52.81159843,144.05,144.01,0.03]
[1741134131842,0.28432314,144.05,144.01,0.03]
[1741134132144,54.42609843,144.06,144.01,0.03]
[1741134132343,73.09592157,144.05,144.01,0.03]
[1741134132643,20.0,144.04,144.01,0.03]
[1741134132844,20.0,144.04,144.01,52.84159843]
[1741134133159,140.59159843,144.08,144.01,52.84159843]
[1741134133339,52.81159843,144.07,144.01,0.03]
[1741134133546,52.81159843,144.07,144.01,52.84159843]
[1741134133965,0.28432314,144.05,144.01,0.03]
[1741134134139,53.09592157,144.05,144.01,0.03]
[1741134134556,52.81159843,144.04,144.01,0.03]
[1741134134752,52.81159843,144.05,144.01,0.03]
[1741134135557,81.8,144.04,144.01,0.03]
[1741134136242,0.28432314,144.06,144.01,0.03]
[1741134136243,53.09592157,144.02,144.01,0.03]
[1741134137839,60.03932157,144.02,144.01,0.03]
[1741134138355,65.99932157,144.02,144.01,0.03]
[1741134139058,6.24432314,144.02,144.01,0.03]
[1741134139359,59.05592157,144.02,144.01,0.03]
[1741134139563,65.99932157,144.02,144.01,0.03]
[1741134139765,5.96,144.02,144.01,0.03]
[1741134140284,2.28432314,143.98,143.91,0.03]
[1741134140440,20.0,143.96,143.91,0.03]
[1741134140640,52.81159843,143.94,143.91,0.03]
[1741134140980,0.28432314,143.94,143.91,0.03]
[1741134141559,52.81159843,143.95,143.91,0.03]
[1741134141881,52.81159843,143.93,143.91,0.03]
[1741134142063,73.09592157,143.95,143.91,0.03]
[1741134142267,72.81159843,143.95,143.91,0.03]
[1741134142473,20.0,143.95,143.91,0.03]
[1741134142972,72.81159843,143.95,143.91,0.03]
[1741134143173,20.0,143.95,143.91,0.03]
[1741134143375,72.81159843,143.95,143.91,0.03]
[1741134143980,20.0,143.95,143.91,0.03]
[1741134144868,72.81159843,143.95,143.91,0.03]
[1741134145065,52.81159843,143.92,143.91,0.03]
[1741134145260,53.09592157,143.92,143.91,0.03]
[1741134146591,54.73692157,143.92,143.91,0.03]
[1741134147262,73.09592157,143.92,143.91,0.03]
[1741134148169,73.09592157,143.92,143.85,6.5116]
[1741134148374,52.81159843,143.9,143.85,6.5116]
[1741134148683,52.81159843,143.9,143.84,6.9521]
[1741134148892,81.8,143.91,143.85,52.81159843]
[1741134149387,134.61159843,143.91,143.84,77.14409843]
[1741134149568,81.8,143.91,143.85,52.81159843]
[1741134149972,20.0,143.92,143.87,52.81159843]
[1741134150174,20.0,143.92,143.84,105.9325]
[1741134150175,81.8,143.93,143.88,52.81159843]
[1741134150379,52.81159843,143.94,143.84,105.9325]
[1741134150380,134.61159843,143.95,143.89,52.81159843]
[1741134150582,114.34517981,143.95,143.88,32.54517981]
[1741134150776,83.44,144.0,143.88,118.1362]
[1741134151095,81.8,143.99,143.94,32.54517981]
[1741134151264,81.8,143.98,143.92,38.89097981]
[1741134151564,32.54517981,143.96,143.88,124.4784]
[1741134151762,114.34517981,143.95,143.88,6.3422]
[1741134151976,114.34517981,143.95,143.89,32.54517981]
[1741134152184,81.8,143.95,143.91,32.54517981]
[1741134152386,114.34517981,143.99,143.92,32.54517981]
[1741134152578,114.34517981,143.99,143.93,6.9478]
[1741134153493,32.54517981,143.98,143.92,6.9483]
[1741134153790,32.54517981,143.98,143.92,39.49347981]
[1741134153998,114.34517981,143.99,143.92,39.49347981]
[1741134154205,81.8,143.99,143.93,32.54517981]
[1741134154370,81.8,143.99,143.94,32.54517981]
[1741134154699,81.8,144.03,143.97,32.54517981]
[1741134154873,81.8,144.06,143.97,114.14517981]
[1741134155192,32.54517981,144.07,144.01,32.54517981]
[1741134155371,32.54517981,144.06,144.0,32.54517981]
[1741134155687,32.54517981,144.07,144.01,6.9439]
[1741134155989,81.8,144.08,144.01,6.9439]
[1741134156182,32.54517981,144.07,144.01,6.9439]
[1741134156494,114.34517981,144.08,144.01,39.48907981]
[1741134156692,32.54517981,144.05,143.98,6.945]
[1741134156989,32.54517981,144.04,143.97,46.15057981]
[1741134157192,32.54517981,144.02,143.97,6.6597]
[1741134157364,32.54517981,144.0,143.95,81.6]
[1741134157564,32.54517981,144.0,143.95,88.5467]
[1741134157771,32.54517981,144.01,143.95,88.5467]
[1741134157969,32.54517981,144.02,143.95,121.09187981]
[1741134158169,32.54517981,144.01,143.95,121.09187981]
[1741134158377,32.54517981,144.01,143.95,88.5467]
[1741134158589,32.54517981,144.05,143.98,32.54517981]
[1741134158796,6.94,144.1,144.01,32.54517981]
[1741134158966,32.54517981,144.08,144.01,32.54517981]
[1741134159293,32.54517981,144.06,144.0,32.54517981]
[1741134159496,114.34517981,144.08,144.01,32.54517981]
[1741134159678,114.34517981,144.08,144.02,6.9434]
[1741134159867,114.34517981,144.1,144.03,32.54517981]
[1741134160072,81.8,144.1,144.04,32.54517981]
[1741134160267,114.34517981,144.1,144.04,32.54517981]
[1741134160595,114.34517981,144.1,144.05,52.76158791]
[1741134160596,81.8,144.1,144.05,52.76158791]
[1741134160807,52.76158791,144.11,144.05,134.36158791]
[1741134161169,59.70028791,144.12,144.05,134.36158791]
[1741134161370,59.70028791,144.12,144.05,81.6]
[1741134161570,52.76158791,144.11,144.05,81.6]
[1741134162088,52.76158791,144.1,144.05,81.6]
[1741134162803,52.76158791,144.11,144.05,81.6]
[1741134162979,88.7382,144.13,144.07,52.76158791]
[1741134164000,141.49978791,144.13,144.06,59.70288791]
[1741134164186,52.76158791,144.12,144.06,59.70288791]
[1741134164394,88.7382,144.13,144.06,59.70288791]
[1741134164395,141.49978791,144.13,144.06,59.70288791]
[1741134165092,59.70048791,144.12,144.06,59.70288791]
[1741134165391,134.56158791,144.13,144.07,52.76158791]
[1741134165601,52.76158791,144.14,144.08,52.76158791]
[1741134165903,52.76158791,144.14,144.08,81.6]
[1741134166480,52.76158791,144.15,144.08,134.36158791]
[1741134166681,0.033,144.16,144.13,52.76158791]
[1741134166882,0.033,144.16,144.14,52.76158791]
[1741134167288,0.033,144.16,144.13,52.76158791]
[1741134167710,0.033,144.16,144.14,52.76158791]
[1741134168003,0.033,144.16,144.14,364.76158791]
[1741134168178,0.033,144.16,144.14,312.0]
[1741134168381,0.033,144.16,144.11,123.0912]
[1741134168579,52.79458791,144.16,144.11,88.1912]
[1741134169295,0.033,144.16,144.11,147.89178791]
[1741134169496,0.033,144.16,144.12,52.76158791]
[1741134169798,0.033,144.16,144.13,52.76158791]
[1741134169975,0.033,144.16,144.14,52.76158791]
[1741134170175,0.033,144.16,144.14,134.36158791]
[1741134170988,0.033,144.16,144.15,52.76158791]
[1741134171187,0.033,144.16,144.15,176.19878791]
[1741134171388,0.033,144.16,144.15,488.19878791]
[1741134171602,0.033,144.21,144.16,0.28432314]
[1741134171789,0.033,144.21,144.2,52.76158791]
[1741134171985,0.033,144.21,144.2,169.26158791]
[1741134172196,0.033,144.21,144.2,134.36158791]
[1741134173300,0.033,144.21,144.2,81.6]
[1741134173598,0.033,144.21,144.2,88.5348]
[1741134174179,0.033,144.21,144.2,81.6]
[1741134174379,0.033,144.21,144.2,88.5348]
[1741134174581,0.033,144.21,144.2,141.29638791]
[1741134174800,0.033,144.21,144.2,453.29638791]
[1741134175002,0.033,144.25,144.2,453.29638791]
[1741134175315,0.033,144.25,144.22,52.76158791]
[1741134176704,0.033,144.25,144.23,52.76158791]
[1741134176903,0.033,144.25,144.24,52.76158791]
[1741134177202,0.0001,144.25,144.24,182.66211105]
[1741134178088,0.0001,144.25,144.24,182.37778791]
[1741134178408,0.0001,144.25,144.24,494.37778791]
[1741134179078,0.0001,144.25,144.24,434.6834]
[1741134179277,0.0001,144.25,144.22,134.36158791]
[1741134179483,0.0001,144.25,144.23,52.76158791]
[1741134181111,0.0001,144.25,144.22,116.5]
[1741134181315,0.0001,144.25,144.22,123.4338]
[1741134181814,0.0001,144.25,144.22,176.19538791]
[1741134182114,0.0001,144.25,144.23,52.76158791]
[1741134182307,0.0001,144.25,144.24,52.76158791]
[1741134182505,0.0001,144.25,144.24,32.36926158]
[1741134182832,0.0001,144.25,144.24,148.86926158]
[1741134183113,0.0001,144.25,144.24,149.15358472]
[1741134183326,0.033,144.31,144.27,20.0]
[1741134183608,0.033,144.31,144.28,32.36926158]
[1741134184219,0.033,144.31,144.3,32.36926158]
[1741134184383,0.033,144.31,144.3,113.96926158]
[1741134184587,0.033,144.31,144.3,81.6]
[1741134185337,0.033,144.31,144.28,81.6]
[1741134185804,32.40226158,144.31,144.25,13.5068]
[1741134185994,32.40226158,144.31,144.25,95.1068]
[1741134186385,32.40226158,144.31,144.25,88.1746]
[1741134186792,0.033,144.31,144.25,120.54386158]
[1741134187097,32.36926158,144.3,144.25,81.6]
[1741134187297,6.9304,144.29,144.25,81.6]
[1741134187501,32.36926158,144.27,144.24,0.03]
[1741134188399,32.36926158,144.26,144.24,0.03]
[1741134188604,32.36926158,144.27,144.24,0.03]
[1741134188791,6.9304,144.29,144.24,0.03]
[1741134188792,32.36926158,144.28,144.24,0.03]
[1741134189210,32.36926158,144.26,144.24,0.03]
[1741134189413,81.8,144.3,144.24,0.03]
[1741134189414,32.36926158,144.28,144.24,0.03]
[1741134189617,32.36926158,144.3,144.24,113.99926158]
[1741134189813,0.033,144.31,144.25,32.36926158]
[1741134190010,32.40226158,144.31,144.24,113.99926158]
[1741134190335,32.36926158,144.3,144.24,113.99926158]
[1741134191211,0.033,144.31,144.26,32.36926158]
[1741134191796,0.033,144.31,144.26,113.96926158]
[1741134192009,0.033,144.31,144.27,32.36926158]
[1741134192211,0.033,144.31,144.29,32.36926158]
[1741134192713,0.033,144.31,144.28,32.36926158]
[1741134192915,6.9597,144.37,144.33,20.0]
[1741134192916,0.033,144.37,144.33,20.0]
[1741134193106,0.033,144.37,144.35,32.36926158]
[1741134193522,0.033,144.37,144.33,107.7689]
[1741134193706,0.033,144.37,144.33,87.7689]
[1741134193911,0.033,144.37,144.35,312.0]
[1741134196514,0.033,144.37,144.33,81.6]
[1741134196691,89.5853,144.36,144.31,59.47648206]
[1741134196896,89.5853,144.36,144.24,156.42912982]
[1741134196897,52.54708206,144.32,144.24,0.03]
[1741134197097,52.54708206,144.28,144.24,0.03]
[1741134197318,59.47678206,144.31,144.24,52.57708206]
[1741134197505,59.47558206,144.34,144.24,81.63]
[1741134197703,6.9285,144.34,144.24,116.53]
[1741134197902,59.47558206,144.34,144.27,72.54708206]
[1741134198103,59.47478206,144.35,144.28,52.54708206]
[1741134198502,52.54708206,144.34,144.27,189.04708206]
[1741134199001,59.47478206,144.35,144.27,189.04708206]
[1741134199323,59.47478206,144.35,144.28,52.54708206]
[1741134199501,59.47478206,144.35,144.28,364.54708206]
[1741134199700,0.033,144.34,144.29,52.54708206]
[1741134200107,0.033,144.34,144.3,52.54708206]
[1741134200329,0.033,144.34,144.3,134.14708206]
[1741134200622,0.033,144.34,144.3,81.6]
[1741134201617,0.033,144.34,144.3,134.14708206]
[1741134202213,0.033,144.34,144.3,141.07698206]
[1741134202410,0.033,144.34,144.31,52.54708206]
[1741134203025,0.033,144.34,144.3,141.07698206]
[1741134203326,0.033,144.34,144.31,312.0]
[1741134203701,0.033,144.34,144.33,72.54708206]
[1741134204020,0.033,144.34,144.33,101.6]
[1741134204901,0.033,144.34,144.33,154.14708206]
[1741134205098,0.033,144.34,144.33,154.4314052]
[1741134205342,0.033,144.34,144.33,189.3314052]
[1741134205625,0.033,144.34,144.33,136.78432314]
[1741134205927,0.033,144.34,144.33,196.2599052]
[1741134206905,0.033,144.34,144.33,508.2599052]
[1741134209007,0.033,144.37,144.34,0.28432314]
[1741134209209,0.033,144.37,144.36,72.8314052]
[1741134209633,0.033,144.37,144.36,20.0]
[1741134209939,0.033,144.37,144.36,101.6]
[1741134210421,52.58008206,144.37,144.32,81.6]
[1741134210608,52.54708206,144.35,144.32,81.6]
[1741134210809,52.54708206,144.34,144.3,81.6]
[1741134211017,52.54708206,144.31,144.27,81.6]
[1741134211319,52.54708206,144.3,144.27,81.6]
[1741134211506,52.54708206,144.3,144.27,81.63]
[1741134211830,52.54708206,144.33,144.27,134.17708206]
[1741134212005,52.54708206,144.34,144.27,134.17708206]
[1741134212206,52.54708206,144.33,144.28,312.0]
[1741134212515,52.54708206,144.3,144.27,81.63]
[1741134212922,52.54708206,144.31,144.27,81.63]
[1741134213329,52.54708206,144.32,144.27,81.63]
[1741134213810,52.54708206,144.33,144.27,81.63]
[1741134214529,32.36801505,144.33,144.27,81.63]
[1741134214716,39.29621505,144.34,144.27,113.99801505]
[1741134214910,32.36801505,144.33,144.27,81.63]
[1741134215428,39.29801505,144.3,144.27,81.63]
[1741134215611,32.36801505,144.29,144.27,393.63]
[1741134215805,32.36801505,144.28,144.27,312.03]
[1741134216005,32.36801505,144.28,144.27,0.03]
[1741134217207,65.02035324,144.28,144.27,0.0001]
[1741134217412,0.28432314,144.27,144.24,0.0001]
[1741134217615,32.65233819,144.25,144.24,0.0001]
[1741134217815,40.87733819,144.25,144.24,0.0001]
[1741134219013,40.59301505,144.25,144.24,0.0001]
[1741134219836,33.93491505,144.25,144.24,0.0001]
[1741134220427,32.36801505,144.25,144.24,0.0001]
[1741134221631,32.36801505,144.25,144.19,20.0]
[1741134221938,32.36801505,144.26,144.19,120.90301505]
[1741134222435,89.4282,144.29,144.2,312.0]
[1741134222436,32.36801505,144.23,144.2,312.0]
[1741134222646,32.36801505,144.21,144.17,81.6]
[1741134222930,32.36801505,144.2,144.14,113.96801505]
[1741134223134,32.36801505,144.21,144.14,113.96801505]
[1741134223335,32.36801505,144.22,144.15,32.36801505]
[1741134223531,32.36801505,144.21,144.15,39.30491505]
[1741134223728,32.36801505,144.21,144.15,120.90491505]
[1741134224312,32.36801505,144.23,144.17,32.36801505]
[1741134224539,114.16801505,144.25,144.18,52.36801505]
[1741134224718,32.36801505,144.25,144.18,133.96801505]
[1741134224919,32.36801505,144.25,144.18,136.5]
[1741134225116,32.36801505,144.25,144.18,168.86801505]
[1741134225342,81.8,144.31,144.22,32.36801505]
[1741134225540,32.36801505,144.29,144.24,312.0]
[1741134225739,32.36801505,144.28,144.24,312.0]